{"text_format":"3","workbook":"xlsx","n_sheets":1,"sheets":["ОБЗР"],"not_rendered":{"external_links":1,"defined_names":9},"read":"whole","date_system":"1900"}

{"sheet":"ОБЗР","index":0,"n_rows":274,"n_cols":11,"rows_kept":274}
["№","Название ОУ","Фамилия","Имя","Класс","Класс участия","Итоговый балл","Макс. Балл","Статус","Призер регионального / республиканского этапа прошлого года","Учитель"]
[1,"МБОУ Карабашская СОШ № 2","Тифунля","Егор",3,3,40,110,"участник",null,"Мухамадиева Залия Ханафеевна"]
[2,"МБОУ СОШ №5","Игнатьев","Кирилл",3,3,36,110,"участник",null,"Львова Ирина Александровна"]
[3,"МБОУ Акбашская ООШ","Меникеева","Аделина",3,3,10,110,"участник",null,"Татарова Н.Л.МБОУ Акбашская ООШ"]
[4,"МБОУ СОШ №13","Гришечкина","Дарина",3,3,28,110,"участник",null,"Максимова А.Л."]
[5,"МБОУ Спасская НШДС","Золина","Яна",3,3,8,110,"участник",null,"Костина О.А."]
[6,"МБОУ Малобугульминская СОШ","Жаринов","Дмитрий",3,3,22,110,"участник",null,"Выходцева А.А."]
[7,"МБОУ Татарская гимназия №14 им.Х.Атласи","Зиятдинов","Тимур",3,3,24,110,"участник",null,"Шайметова Ф.И."]
[8,"МБОУ СОШ №1","Горбачев","Ярослав",3,3,22,110,"участник",null,"Сыркина И.А."]
[9,"МБОУ СОШ №3","Козлова","Виолетта",3,3,32,110,"участник",null,"Чернуха О.М."]
[10,"МБОУ СОШ №4","Рызыванов","Максим",3,3,38,110,"участник",null,"Пшеничняк О.В."]
[11,"МБОУ Зелено-Рощинская ООШ","Платонов","Максим",3,3,30,110,"участник",null,"Шафигуллина Гульнара Ильясовна"]
[12,"МБОУ СОШ №13","Мельникова","Валерия",3,3,14,110,"участник",null,"Сяплина С.А"]
[13,"МБОУ СОШ №1","Красов","Мирослав",3,3,24,110,"участник",null,"Сыркина И.А."]
[14,"МБОУ Татарская гимназия №14 им.Х.Атласи","Габидуллин","Азат",3,3,26,110,"участник",null,"Гиниатуллина Г.Ф."]
[15,"МБОУ СОШ №3","Новицкий","Евгений",3,3,50,110,"участник",null,"Зиннатова Г.Ш."]
[16,"МБОУ Сокольская ООШ","Шакиров","Марсель",4,4,30,110,"участник",null,"Мазлов С.Н"]
[17,"МБОУ СОШ №11","Жураев","Амир",4,4,28,110,"участник",null,"Алексеева Е.Н."]
[18,"МБОУ ООШ №18","Мавзютов","Руслан",4,4,34,110,"участник",null,"Чернышова О.А."]
[19,"МБОУ ООШ №8","Салун","Михаил",4,4,38,110,"участник",null,"Храмова Гульнара Рафагатовна"]
[20,"МБОУ гимназия №7","Братчикова","Регина",4,4,36,110,"участник",null,"Зубарева Людмила Александровна"]
[21,"МБОУ СОШ №1","Мальцева","Таисия",4,4,32,110,"участник",null,"Шайдуллина Э.М."]
[22,"МБОУ СОШ №16","Семенова","Элина",4,4,44,110,"участник",null,"Данилова Л. А."]
[23,"МБОУ Малобугульминская СОШ","Хакимова","Амалия",4,4,42,110,"участник",null,"Кострова С.Р."]
[24,"МБОУ лицей №2","Чакушина","Нурия",4,4,51,110,"участник",null,"Афанасьева М.М."]
[25,"МБОУ Татарская гимназия №14 им.Х.Атласи","Бикбулатова","Зарина",4,4,27,110,"участник",null,"Гафиатуллина Р.А."]
[26,"МБОУ Восточная ООШ","Газизов","Азамат",4,4,14,110,"участник",null,"Портнова А.А."]
[27,"МБОУ Татарская гимназия №14 им.Х.Атласи","Газизуллина","Ясмина",4,4,40,110,"участник",null,"Гиниатуллина Г.Ф."]
[28,"МБОУ Татарская Дымская ООШ","романов","Роман",4,4,28,110,"участник",null,"Гилязева Алина Рифатовна"]
[29,"МБОУ гимназия №7","Полуектов","Кирилл",4,4,36,110,"участник",null,"Золотухина Марина Владимировна"]
[30,"МБОУ СОШ №13","Сираев","Дмитрий",4,4,42,110,"участник",null,"Мугинова Л.К."]
[31,"МБОУ ООШ №12","Якубов","Сергей",4,4,40,110,"участник",null,"Заказчикова"]
[32,"МБОУ Татарская гимназия №14 им.Х.Атласи","Хабибуллина","Диана",4,4,54,110,"участник",null,"Гафиатуллина Р.А."]
[33,"МБОУ СОШ №3","Ягубов","Ибрагим",4,4,36,110,"участник",null,"Александрова Н.В."]
[34,"АНО ОО\"Прогимназия №14 \"Журавушка\"","Хаматов","Азамат",4,4,50,110,"участник",null,"Смелова Т. Л."]
[35,"МБОУ СОШ №1","Ганиева","Ульяна",4,4,30,110,"участник",null,"Шайдуллина Э.М."]
[36,"МБОУ лицей №2","Пятаева","Анастасия",4,4,40,110,"участник",null,"Афанасьева М.М."]
[37,"МБОУ СОШ №4","Савернюк","Давид",4,4,30,110,"участник",null,"Пшеничняк О.В."]
[38,"МБОУ СОШ №5","Шарифуллина","Сабина",4,4,26,110,"участник",null,"Пантелеева Ирина Николаевна"]
[39,"МБОУ Новоалександровская НШ-ДС","Оборина","Наталья",4,4,16,110,"участник",null,"Фадеева Г.Р."]
[40,"МБОУ СОШ №9","Константинов","Даниил",4,4,8,110,"участник",null,"Михайлова Наталья Федоровна"]
[41,"МБОУ Карабашская СОШ № 2","Гиниятуллин","Рамиль",4,4,36,110,"участник",null,"Сибагатуллина Г.Ф."]
[42,"МБОУ Карабашская ООШ №1","Ахмедова","Амаль",4,4,36,110,"участник",null,"Каримова Г.С."]
[43,"МБОУ СОШ №11","Гизатуллин","Радмир",4,4,20,110,"участник",null,"Алексеева Е.Н."]
[44,"МБОУ СОШ №6","Багаутдинов","Тимур",4,4,75,110,"призер",null,"Шарипова И.И."]
[45,"МБОУ СОШ №6","Салихова","Самина",4,4,66,110,"участник",null,"Шарипова И.И."]
[46,"МБОУ лицей №2","Каштанов","Иван",4,4,56,110,"участник",null,"Афанасьева М.М."]
[47,"МБОУ Кудашевская ООШ","Сафин","Ильсур",4,4,38,110,"участник",null,"Гаязова В.З."]
[48,"МБОУ СОШ №13","Шайхутдинова","Арина",4,4,29,110,"участник",null,"Винокурова С.Э."]
[49,"МБОУ СОШ №5","Смольницкий","Никита",4,4,24,110,"участник",null,"Пантелеева Ирина Николаевна"]
[50,"МБОУ СОШ №9","Коломиец","Артем",4,4,26,110,"участник",null,"Щербакова Ольга Александровна"]
[51,"МБОУ СОШ №3","Кузьмин","Ярослав",4,4,30,110,"участник",null,"Александрова Н.В."]
[52,"МБОУ Ключевская НШ-ДС","Роденко","Богдан",4,4,32,110,"участник",null,"Павлова Ольга Николаевна"]
[53,"МБОУ СОШ №4","Щербаков","Илья",4,4,36,110,"участник",null,"Пшеничняк О.В."]
[54,"АНО ОО\"Прогимназия №14 \"Журавушка\"","Игнатьева","Полина",4,4,64,110,"участник",null,"Смелова Т. Л."]
[55,"МБОУ лицей №2","Валеев","Руслан",4,4,84,110,"победитель","да","Афанасьева М.М."]
[56,"МБОУ Татарская гимназия №14 им.Х.Атласи","Шайметов","Даниил",5,5,83,100,"призер",null,"Гайнуллин Ф.К."]
[57,"МБОУ лицей №2","Жвакин","Лев",5,5,80,100,"призер",null,"Степанищева Л.Р."]
[58,"МБОУ СОШ №5","Комилов","Муслим",5,5,65,100,"участник",null,"Гайнуллин Ф.К."]
[59,"МБОУ Кудашевская ООШ","Хисматов","Булат",5,5,56,100,"участник",null,"Галиуллина А.К."]
[60,"МБОУ Сокольская ООШ","Панёвкин","Максим",5,5,55,100,"участник",null,"Пахомова Юлия Владимировна"]
[61,"МБОУ гимназия №7","Шипилов","Вячеслав",5,5,50,100,"участник",null,"Ёлшина Е.В."]
[62,"МБОУ сош №5","Мальцева ","Злата ",5,5,50,100,"участник",null,"Пахомова Юлия Владимировна"]
[63,"МБОУ СОШ №16","Шипилов","Вячеслав",5,5,50,100,"участник",null,"Соколова С. Ю."]
[64,"МБОУ СОШ 5","Щербакова","Арина",5,5,47,100,"участник",null,"Пахомова Ю.В."]
[65,"МБОУ Татарская гимназия №14 им.Х.Атласи","Субханов","Азамат",5,5,45,100,"участник",null,"Гайнуллин Ф.К."]
[66,"МБОУ гимназия №7","Сергеев","Тимофей",5,5,43,100,"участник",null,"Нуждин Вячеслав Юрьевич"]
[67,"МБОУ СОШ №6","Авхадиева","Лиана",5,5,42,100,"участник",null,"Филатова Г.Ю."]
[68,"МБОУ СОШ №16","Слесарева","Ксения",5,5,41,100,"участник",null,"Соколова С. Ю."]
[69,"МБОУ гимназия №7","Гафуров","Эмиль",5,5,41,100,"участник",null,"Нуждин Вячеслав Юрьевич"]
[70,"МБОУ СОШ №4","Шильников","Кирилл",5,5,40,100,"участник",null,"Черненко  ЕВ"]
[71,"МБОУ лицей-интернат им.М.Онджеля","Бирючевская","Милана",5,5,40,100,"участник",null,"Третьякова Наталья Дмитриевна"]
[72,"МБОУ ООШ №18","Сидоров","Лев",5,5,39,100,"участник",null,"Хуснуллин Л.И."]
[73,"МБОУ СОШ №11","Мельников","Андрей",5,5,39,100,"участник",null,"Хуснуллин Л.И."]
[74,"МБОУ СОШ №4","Шильников","Кирилл",5,5,39,100,"участник",null,"Пшеничняк О.В."]
[75,"МБОУ ТАТарская Дымка","Вакульчик","Роман ",5,5,38,100,"участник",null,"Миннегараева Р.Ф."]
[76,"МБОУ СОШ №11","Сенюков","Даниэль",5,5,38,100,"участник",null,"Пахомова Юлия Владимировна"]
[77,"МБОУ Татарская Дымская ООШ","ВАКУЛЬЧИК","РОМАН",5,5,38,100,"участник",null,"Миннегараева Р.Ф."]
[78,"МБОУ Наратлинская ООШ","Маликов","Максим",5,5,36,100,"участник",null,"Пахомова"]
[79,"МБОУ ООШ №18","Павлюшкина","Таисия",5,5,36,100,"участник",null,"Хуснуллин Л.И."]
[80,"ГБОУ \"Бугульминская кадетская школа-интернат\"","Абдуллаев","Арсен",5,5,34,100,"участник",null,"Бобров Д.В."]
[81,"ГБОУ \"Бугульминская кадетская школа-интернат\"","Абдуллаев","Арман",5,5,34,100,"участник",null,"Бобров Д.В."]
[82,"МБОУ СОШ 5","Хисамеева","Варвара",5,5,31,100,"участник",null,"Пахомова Ю.В."]
[83,"МБОУ СОШ 5","Канилов ","Муслим",5,5,31,100,"участник",null,"Пахомова Ю.В."]
[84,"ГБОУ \"Бугульминская кадетская школа-интернат\"","Абдуллаев","Арман",5,5,16,100,"участник",null,"Бобров Д.В."]
[85,{"$f":"[1]list!C81","v":"МБОУ СОШ №1"},{"$f":"[1]list!E81","v":"Галеева"},{"$f":"[1]list!F81","v":"Сабина"},{"$f":"[1]list!K81","v":6},{"$f":"[1]list!L81","v":6},{"$f":"[1]list!O81","v":95},{"$f":"[1]list!P81","v":100},{"$f":"[1]list!Q81","v":"победитель"},null,"Тихонов О.И."]
[86,"МБОУ СОШ №1","Бойко","Софья",6,6,{"$f":"[1]list!O84","v":94},{"$f":"[1]list!P84","v":100},{"$f":"[1]list!Q84","v":"призер"},null,"Тихонов О.И."]
[87,"МБОУ Татарская гимназия №14 им.Х.Атласи","Субханов","Айбулат",6,6,{"$f":"[1]list!O93","v":87},{"$f":"[1]list!P93","v":100},{"$f":"[1]list!Q93","v":"призер"},null,"Гайнуллин Ф.К."]
[88,"МБОУ Татарская гимназия №14 им.Х.Атласи","Мингалиев","Наиль",6,6,{"$f":"[1]list!O98","v":86},{"$f":"[1]list!P98","v":100},{"$f":"[1]list!Q98","v":"призер"},null,"Гайнуллин Ф.К."]
[89,"МБОУ Татарская гимназия №14 им.Х.Атласи","Султанов","Марсель",6,6,82,100,"призер",null,"Гайнуллин Ф.К."]
[90,"МБОУ СОШ №16","Жемков","Павел",6,6,80,100,"призер",null,"Соколова С. Ю."]
[91,"МБОУ Зелено-Рощинская ООШ","Платонов","Денис",6,6,67,100,"участник",null,"Гайнуллин Ф.К."]
[92,"МБОУ СОШ №6","Частухина","Виктория",6,6,58,100,"участник",null,"Филатова Г.Ю."]
[93,"ГБОУ \"Бугульминская кадетская школа-интернат\"","Абдуллаев","Арман",6,6,57,100,"участник",null,"Бобров ДВ"]
[94,"МБОУ гимназия №7","Потапова","Дарья",6,6,57,100,"участник",null,"Камбулов Алексей Владимирович"]
[95,"МБОУ гимназия №7","Кривова","Дарина",6,6,56,100,"участник",null,"Камбулов Алексей Владимирович"]
[96,"ГБОУ \"Бугульминская кадетская школа-интернат\"","Борков","Богдан",6,6,51,100,"участник",null,"Бобров Д.В."]
[97,"МБОУ ООШ №18","Богомазова","Виктория",6,6,49,100,"участник",null,"Хуснуллин Л.И."]
[98,"МБОУ Зелено-Рощинская ООШ","Жилин","Кирилл",6,6,48,100,"участник",null,"Никонова Татьяна Александровна"]
[99,"МБОУ Восточная ООШ","Сендюков","Тимур",6,6,47,100,"участник",null,"Абрамова И.Н."]
[100,"МБОУ СОШ №9","Анисимов","Глеб",6,6,47,100,"участник",null,"Гайнуллин Ф.К."]
[101,"МБОУ СОШ №11","Набиуллин","Артем",6,6,46,100,"участник",null,"Фаттахов Ф.М."]
[102,"ГБОУ \"Бугульминская кадетская школа-интернат\"","Чурина","Полина",6,6,45,100,"участник",null,"Бобров Д.В."]
[103,"МБОУ ООШ №18","Аношин","Мирослав",6,6,45,100,"участник",null,"Хуснуллин Л.И."]
[104,"МБОУ лицей-интернат им.М.Онджеля","Елисеева","Елизавета",6,6,44,100,"участник",null,"Третьякова Наталья Дмитриевна"]
[105,"МБОУ СОШ №11","Мельников","Андрей",6,6,43,100,"участник",null,"Фаттахов Ф.М."]
[106,"МБОУ СОШ №4","Ахмадуллин","Камиль",6,6,43,100,"участник",null,"Пшеничняк О.В."]
[107,"МБОУ Наратлинская ООШ","Маликов","Максим",6,6,43,100,"участник",null,"Желованов П"]
[108,"МБОУ Малобугульминская СОШ","Качалова","Ксения",6,6,42,100,"участник",null,"Абдюков Р.Ф"]
[109,"МБОУ Кудашевская ООШ","Шагаева","Зарина",6,6,42,100,"участник",null,"Галиуллина А.К."]
[110,"МБОУ СОШ №9","Пелепец","Даниил",6,6,42,100,"участник",null,"Сабанов В.П."]
[111,"МБОУ СОШ №13","Щепотина","Стефания",6,6,40,100,"участник",null,"Коновалов Сергей Иванович"]
[112,"МБОУ СОШ №3","Николаев","Ярослав",6,6,39,100,"участник",null,"Степанищев С.В."]
[113,"МБОУ лицей-интернат им.М.Онджеля","Сенькина","Ольга",6,6,38,100,"участник",null,"Третьякова Наталья Дмитриевна"]
[114,"МБОУ СОШ №11","Набиуллин","Артем",6,6,36,100,"участник",null,"Фаттахов Ф.М."]
[115,"МБОУ Зелено-Рощинская ООШ","Платонов","Денис",6,6,30,100,"участник",null,"Никонова Татьяна Александровна"]
[116,"МБОУ СОШ №9","Анисимов","Глеб",6,6,27,100,"участник",null,"Сабанов В.П."]
[117,"МБОУ СОШ №1","Малышева","Варвара",7,7,189,200,"призер",null,"Тихонов О.И."]
[118,"МБОУ СОШ №1","Фонаков","Данил",7,7,186,200,"призер",null,"Тихонов О.И."]
[119,"МБОУ лицей №2","Чакушин","Данияр",7,7,183,200,"призер","да","Степанищева Л.Р."]
[120,"МБОУ СОШ №3","Шурыгин","Илья",7,7,183,200,"призер","да","Степанищев С.В."]
[121,"МБОУ СОШ №1","Севастьянов","Дмитрий",7,7,142,200,"участник",null,"Тихонов О.И."]
[122,"МБОУ гимназия №7","Гельманова","Айгуль",7,7,138,200,"участник",null,"Камбулов Алексей Владимирович"]
[123,"МБОУ Татарская гимназия №14 им.Х.Атласи","Журавлев","Роман",7,7,126,200,"участник",null,"Гайнуллин Ф.К."]
[124,"МБОУ Сокольская ООШ","Богатырева","Ангелина",7,7,120,200,"участник",null,"Мазлов С.Н"]
[125,"МБОУ ООШ №18","Лапшов","Илья",7,7,{"$f":"[1]list!O73","v":99},{"$f":"[1]list!P73","v":200},"участник",null,"Хуснуллин Л.И."]
[126,"МБОУ СОШ №5","Ясовнев","Вадим",7,7,{"$f":"[1]list!O74","v":97},{"$f":"[1]list!P74","v":200},"участник",null,"Пахомова Юлия Владимировна"]
[127,"МБОУ Карабашская ООШ №1","Мулюков","Гаяз",7,7,{"$f":"[1]list!O78","v":96},{"$f":"[1]list!P78","v":200},"участник",null,"Насирова "]
[128,"МБОУ лицей-интернат им.М.Онджеля","Салимова","Айсылу",7,7,{"$f":"[1]list!O82","v":95},{"$f":"[1]list!P82","v":200},"участник",null,"Третьякова Наталья Дмитриевна"]
[129,"МБОУ СОШ №13","Петров","Денис",7,7,{"$f":"[1]list!O94","v":87},{"$f":"[1]list!P94","v":200},"участник",null,"Коновалов Сергей Иванович"]
[130,"МБОУ СОШ №16","Гильманов","Тимур",7,7,{"$f":"[1]list!O95","v":87},{"$f":"[1]list!P95","v":200},"участник",null,"Соколова С.Ю"]
[131,"МБОУ СОШ №16","Варенов","Владимир",7,7,{"$f":"[1]list!O99","v":86},{"$f":"[1]list!P99","v":200},"участник",null,"Соколова С.Ю"]
[132,"МБОУ Карабашская ООШ №1","Хузин","Разиль",7,7,85,200,"участник",null,"Насирова Р.Н."]
[133,"МБОУ СОШ №3","Мальцев","Владислав",7,7,85,200,"участник",null,"Степанищев С.А."]
[134,"МБОУ СОШ 4","Гадельшин","Амир",7,7,84,200,"участник",null,"Черненко Екатерина Викторовна, учитель ОБЗР"]
[135,"Лицей-интернат им.М.Онджеля","Кузнецова","Анна",7,7,80,200,"участник",null,"Третьякова Наталья Дмитриевна"]
[136,"МБОУ СОШ №16","Водопьянов","Кирилл",7,7,80,200,"участник",null,"Соколова С.Ю"]
[137,"МБОУ лицей-интернат им.М.Онджеля","Галлямова","Каролина",7,7,72,200,"участник",null,"Третьякова Наталья Дмитриевна"]
[138,"МБОУ СОШ №3","Арзамасцев","Александр",7,7,72,200,"участник",null,"Степанищев С.А."]
[139,"МБОУ лицей-интернат им.М.Онджеля","Шабанов","Магомед Мурад",7,7,70,200,"участник",null,"Шунгалов Булат Жулдасович"]
[140,"МБОУ ООШ №18","Хамидова","Сабина",7,7,65,200,"участник",null,"Хуснуллин Л.И."]
[141,"Лицей-интернат им.М.Онджеля","Газизуллин","Фархад",7,7,55,200,"участник",null,"Шунгалов Булат Жулдасович"]
[142,"Лицей-интернат им.М.Онджеля","Магамедов","Мухаммед",7,7,54,200,"участник",null,"Шунгалов Булат Жулдасович"]
[143,"МБОУ Сокольская ООШ","Богатырева","Ангелина",7,7,46,200,"участник",null,"Мазлов С.Н"]
[144,"МБОУ Акбашская ООШ","Дунаева","Маргарита",7,7,26,200,"участник",null,"Калякина И.Е."]
[145,"МБОУ СОШ №5","Смирнов","Дмитрий",7,7,26,200,"участник",null,"Пахомова Юлия Владимировна"]
[146,"МБОУ лицей-интернат им.М.Онджеля","Дильмухаметов","Хаким",7,7,26,200,"участник",null,"Шунгалов Булат Жулдасович"]
[147,"МБОУ лицей-интернат им.М.Онджеля","Шабанов","Магомед Мурад",7,7,24,200,"участник",null,"Шунгалов Булат Жулдасович"]
[148,"МБОУ Кудашевская ООШ","Ризванов","Альберт",7,7,20,200,"участник",null,"Галиуллина А.К."]
[149,"МБОУ лицей №2","Кислинский","Тимофей",8,8,198,200,"победитель",null,"Степанищев С.В."]
[150,"МБОУ гимназия №7","Петрухина","Кристина",8,8,197,200,"призер",null,"Камбулов Алексей Владимирович"]
[151,"МБОУ СОШ №3","Юнусов","Радмир",8,8,197,200,"призер",null,"Степанищев С.В."]
[152,"МБОУ Татарская гимназия №14 им.Х.Атласи","Гимадиева","Инзиля",8,8,186,200,"призер",null,"Гайнуллин Ф.К."]
[153,"МБОУ СОШ №11","Ковальчук","Валерия",8,8,183,200,"призер",null,"Фаттахов Ф.М."]
[154,"МБОУ СОШ №16","Сафин","Родион",8,8,183,200,"призер",null,"Соколова С. Ю."]
[155,"МБОУ лицей №2","Григорьева","Ксения",8,8,183,200,"призер","да","Степанищева Л.Р."]
[156,"МБОУ СОШ №3","Игнатьев","Данил",8,8,170,200,"участник",null,"Степанищев С.В."]
[157,"МБОУ СОШ №11","Мельников","Артем",8,8,146,200,"участник",null,"Фаттахов Ф.М."]
[158,"МБОУ гимназия №7","Абдрашитов","Дамир",8,8,140,200,"участник",null,"Камбулов Алексей Владимирович"]
[159,"МБОУ СОШ №6","Сибгатуллин","Руслан",8,8,136,200,"участник",null,"Филатова Г.Ю."]
[160,"МБОУ Сокольская ООШ","Шанцев","Савелий",8,8,135,200,"участник",null,"Мазлов С.Н"]
[161,"МБОУ Татарская гимназия №14 им.Х.Атласи","Бадыков","Амир",8,8,135,200,"участник",null,"Гайнуллин Ф.К."]
[162,"МБОУ СОШ №3","Малькова","Варвара",8,8,123,200,"участник",null,"Степанищев С.В."]
[163,"МБОУ Карабашская СОШ №2","Егоров","Данис",8,8,123,200,"участник",null,"Ёлшина Е.В."]
[164,"МБОУ СОШ №6","Синягаев","Александр",8,8,123,200,"участник",null,"Филатова Г.Ю."]
[165,"МБОУ Наратлинская ООШ","Никанорова","Мария",8,8,118,200,"участник",null,"Желованов П.В."]
[166,"МБОУ СОШ №9","Дульский","Матвей",8,8,{"$f":"[1]list!O63","v":107},{"$f":"[1]list!P63","v":200},"участник",null,"Сабанов ВП"]
[167,"Лицей-интернат им.М.Онджеля","Бадрутдинов","Идрис",8,8,{"$f":"[1]list!O69","v":101},{"$f":"[1]list!P69","v":200},"участник",null,"Шунгалов Б.Ж."]
[168,"СОШ №4","Мусаткина","Ксения",8,8,{"$f":"[1]list!O75","v":97},{"$f":"[1]list!P75","v":200},"участник",null,"ЧерненкоЕ.В."]
[169,"СОШ №4","Набиева","Самира",8,8,{"$f":"[1]list!O76","v":97},{"$f":"[1]list!P76","v":200},"участник",null,"Черненко Е.В."]
[170,"МБОУ ООШ №18","Александров","Егор",8,8,{"$f":"[1]list!O83","v":95},{"$f":"[1]list!P83","v":200},"участник",null,"Хуснуллин Л.И."]
[171,"ООШ №18","Топорова","Ангелина",8,8,{"$f":"[1]list!O86","v":92},{"$f":"[1]list!P86","v":200},"участник",null,"Хуснуллин Л.и."]
[172,"ООШ №18","Бочкарева","Полина",8,8,{"$f":"[1]list!O88","v":91},{"$f":"[1]list!P88","v":200},"участник",null,"Хуснуллин Л.и."]
[173,"МБОУ СОШ №4","Архипов","Тимур",8,8,{"$f":"[1]list!O96","v":87},{"$f":"[1]list!P96","v":200},"участник",null,"Черненко Е.В."]
[174,"МБОУ СОШ №4","Архипов","Роман",8,8,{"$f":"[1]list!O100","v":86},{"$f":"[1]list!P100","v":200},"участник",null,"Черненко Е.В."]
[175,"МБОУ СОШ №6","Скороход","Самир",8,8,85,200,"участник",null,"Филатова Г.Ю."]
[176,"СОШ №4","Петрова","Эвелина",8,8,84,200,"участник",null,"Черненко Е.в."]
[177,"МБОУ ООШ №18","Александрова","Ирина",8,8,84,200,"участник",null,"Хуснуллин Л.И."]
[178,"СОШ №4","Храмов","Данил",8,8,83,200,"участник",null,"Черненко Е.в."]
[179,"Лицей-интернат им.М.Онджеля","Саламов","Файз",8,8,72,200,"участник",null,"Шунгалов Булат Жулдасович"]
[180,"СОШ №4","Зиннатов","Амир",8,8,70,200,"участник",null,"Черненко Е.в."]
[181,"МБОУ Кудашевская ООШ","Мусалимов","Тагир",8,8,56,200,"участник",null,"Галиуллина А.К."]
[182,"МБОУ Карабашская СОШ №2","Кашапов","Азат",8,8,52,200,"участник",null,"Мухаметова Алена Михайловна"]
[183,"МБОУ Татарская гимназия №14 им.Х.Атласи","Хамидуллина","Эмилия",8,8,47,200,"участник",null,"Гайнуллин Ф.к."]
[184,"МБОУ Восточная ООШ","Джумалыев","Ралан",8,8,47,200,"участник",null,"Абрамова И.Н."]
[185,"МБОУ лицей-интернат им.М.Онджеля","Газизуллин","Фархад",8,8,45,200,"участник",null,"Шунгалов Булат Жулдасович"]
[186,"МБОУ лицей-интернат им.М.Онджеля","Магамедов","Мухаммед",8,8,43,200,"участник",null,"Шунгалов Булат Жулдасович"]
[187,"МБОУ Малобугульминская СОШ","Козина","Ирина",8,8,32,200,"участник",null,"Абдюков Р.Ф"]
[188,"МБОУ ООШ №8","Валиев","Алихан",8,8,32,200,"участник",null,"Мухаметшина Миляуша Шавкатовна"]
[189,"МБОУ  СОШ 9","Шайхулов ","Динар",8,8,91,200,"участник",null,"Сабанов ВП"]
[190,"МБОУ гимназия №7","Паршина","Александра",9,9,186,200,"победитель",null,"Камбулов Алексей Владимирович"]
[191,"МБОУ СОШ №1","Печерская","Ксения",9,9,185,200,"призер",null,"Тихонов О.И."]
[192,"МБОУ СОШ №3","Дычко","Дмитрий",9,9,184,200,"призер",null,"Степанищев С.В."]
[193,"МБОУ СОШ №11","Хафизов","Руслан",9,9,180,200,"призер",null,"Фаттахов Ф.М."]
[194,"МБОУ СОШ №16","Погорелов","Серафим",9,9,181,200,"призер",null,"Соколова С. Ю."]
[195,"МБОУ СОШ №6","Кирюшкина","Ангелина",9,9,156,200,"призер",null,"Филатова Г.Ю."]
[196,"МБОУ Малобугульминская СОШ","Зареев","Илья",9,9,134,200,"участник",null,"Абдюков Р.Ф"]
[197,"МБОУ СОШ №11","Кочемасов","Никита",9,9,128,200,"участник",null,"Фаттахов Ф.М."]
[198,"МБОУ СОШ №9","Захаров","Михаил",9,9,126,200,"участник",null,"Сабанов В.П."]
[199,"МБОУ СОШ №3","Вакатов","Кирилл",9,9,155,200,"участник",null,"Степанищев С.В."]
[200,"МБОУ СОШ №1","Загидуллина","Даяна",9,9,122,200,"участник",null,"Тихонов О.И."]
[201,"МБОУ СОШ №6","Суханова","Арина",9,9,122,200,"участник",null,"Филатова Г.Ю."]
[202,"МБОУ лицей №2","Буравова","Арина",9,9,121,200,"участник",null,"Степанищева Л.Р."]
[203,"МБОУ лицей-интернат им.М.Онджеля","Саламов","Файз",9,9,121,200,"участник",null,"Шунгалов Булат Жулдасович"]
[204,"МБОУ Сокольская ООШ","Хабибуллин","Руслан",9,9,119,200,"участник",null,"Мазлов С.Н"]
[205,"МБОУ СОШ №5","Разумов","Тимофей",9,9,115,200,"участник",null,"Пахомова Юлия Владимировна"]
[206,"ГБОУ \"Бугульминская кадетская школа-интернат\"","Ахов","Данил",9,9,114,200,"участник",null,"Бобров Д.В."]
[207,"МБОУ Наратлинская ООШ","Черников","Владислав",9,9,112,200,"участник",null,"Желованов П.В."]
[208,"МБОУ СОШ №9","Алексеев","Александр",9,9,112,200,"участник",null,"Сабанов В.П."]
[209,"ГБОУ \"Бугульминская кадетская школа-интернат\"","Толстов","Евгений",9,9,108,200,"участник",null,"Бобров Д.В."]
[210,"МБОУ СОШ №5","Емельянов","Максим",9,9,108,200,"участник",null,"Пахомова Юлия Владимировна"]
[211,"ГБОУ \"Бугульминская кадетская школа-интернат\"","Толстов","Евгений",9,9,{"$f":"[1]list!O64","v":107},{"$f":"[1]list!P64","v":200},"участник",null,"Бобров Д.В."]
[212,"МБОУ ООШ №12","Гордеев","Ярослав",9,9,{"$f":"[1]list!O65","v":107},{"$f":"[1]list!P65","v":200},"участник",null,"Шайгарданова Р.Р."]
[213,"ГБОУ \"Бугульминская кадетская школа-интернат\"","Толстов","Евгений",9,9,{"$f":"[1]list!O66","v":107},{"$f":"[1]list!P66","v":200},"участник",null,"Бобров Д.В."]
[214,"МБОУ СОШ №6","Шипилов","Иван",9,9,{"$f":"[1]list!O67","v":105},{"$f":"[1]list!P67","v":200},"участник",null,"Филатова Г.Ю."]
[215,"МБОУ лицей-интернат им.М.Онджеля","Кузнецова ","Анна",9,9,{"$f":"[1]list!O68","v":102},{"$f":"[1]list!P68","v":200},"участник",null,"Третьякова Н.Д."]
[216,"МБОУ гимназия №7","Конакова","Анастасия",9,9,{"$f":"[1]list!O72","v":100},{"$f":"[1]list!P72","v":200},"участник",null,"Камбулов Алексей Владимирович"]
[217,"МБОУ ООШ №12","Герасимов","Максим",9,9,{"$f":"[1]list!O77","v":97},{"$f":"[1]list!P77","v":200},"участник",null,"Шайгарданова Р.Р."]
[218,"МБОУ Карабашская СОШ №2","Иванов","Роман",9,9,{"$f":"[1]list!O79","v":96},{"$f":"[1]list!P79","v":200},"участник",null,"Елшина "]
[219,"МБОУ ООШ №18","Алексеева","Алена",9,9,{"$f":"[1]list!O80","v":96},{"$f":"[1]list!P80","v":200},"участник",null,"Хуснуллин Л.И."]
[220,"МБОУ СОШ №5","Горбунов","Роман",9,9,79,200,"участник",null,"Пахомова Юлия Владимировна"]
[221,"МБОУ ООШ №18","Неклюдов","Артем",9,9,73,200,"участник",null,"Хуснуллин Л.И."]
[222,"МБОУ СОШ №4","Храмов","Данил",9,9,53,200,"участник",null,"Черненко Е.В."]
[223,"МБОУ СОШ №13","Крашенинникова","Наталья",9,9,40,200,"участник",null,"Коновалов Сергей Иванович"]
[224,"МБОУ Акбашская ООШ","Визнюк","Максим",9,9,37,200,"участник",null,"Калякина Ирина Егоровна"]
[225,"МБОУ СОШ №4","Заргаров","Равин",9,9,33,200,"участник",null,"Черненко Е.В."]
[226,"МБОУ Восточная ООШ","Вотчинников","Максим",9,9,24,200,"участник",null,"Абрамова И.Н."]
[227,"МБОУ Кудашевская ООШ","Сафаров","Эмиль",9,9,22,200,"участник",null,"Галиуллина А.К."]
[228,"МБОУ ООШ №8","Севрюков","Сергей",9,9,12,200,"участник",null,"Мухаметшина Миляуша Шавкатовна"]
[229,"МБОУ СОШ №1","Муратова","Милана",10,10,198,200,"победитель",null,"Тихонов О.И."]
[230,"МБОУ СОШ №1","Ковольчук","Полина",10,10,197,200,"призер",null,"Тихонов О.И."]
[231,"МБОУ Татарская гимназия №14 им.Х.Атласи","Ярмиев","Равиль",10,10,188,200,"призер",null,"Гайнуллин Ф.К."]
[232,"МБОУ СОШ №3","Гатин","Амир",10,10,187,200,"призер",null,"Степанищев С.В."]
[233,"МБОУ СОШ №1","Джанбулатов","Марат",10,10,187,200,"призер","да","Тихонов О.И."]
[234,"МБОУ СОШ №1","Укмалов","Данияр",10,10,151,200,"участник",null,"Тихонов О.И."]
[235,"ГБОУ \"Бугульминская кадетская школа-интернат\"","Латыпов","Марсель",10,10,{"$f":"[1]list!O62","v":108},{"$f":"[1]list!P62","v":200},"участник",null,"Бобров Д.В."]
[236,"МБОУ СОШ №5","Токарев","Георгий",10,10,{"$f":"[1]list!O70","v":101},{"$f":"[1]list!P70","v":200},"участник",null,"Пахомова Юлия Владимировна"]
[237,"МБОУ Наратлинская ООШ","Трошкина","Анна",10,10,{"$f":"[1]list!O71","v":101},{"$f":"[1]list!P71","v":200},"участник",null,"Пахомова Юлия Владимировна"]
[238,"МБОУ СОШ №11","Токмачев","Никита",10,10,{"$f":"[1]list!O85","v":94},{"$f":"[1]list!P85","v":200},"участник",null,"Гайнуллин Ф.К."]
[239,"МБОУ СОШ №11","Батыркин","Иван",10,10,{"$f":"[1]list!O87","v":92},{"$f":"[1]list!P87","v":200},"участник",null,"Фаттахов Ф.М."]
[240,"МБОУ Татарская гимназия №14 им.Х.Атласи","Шарипова","Эвелина",10,10,{"$f":"[1]list!O90","v":90},{"$f":"[1]list!P90","v":200},"участник",null,"Гайнуллин ФК"]
[241,"МБОУ СОШ №6","Зубова","Елизавета",10,10,75,200,"участник",null,"Филатова ГЮ"]
[242,"МБОУ лицей-интернат им.М.Онджеля","Жилина","Ульяна",10,10,71,200,"участник",null,"Третьякова Наталья Дмитриевна"]
[243,"МБОУ СОШ №5","Ямашев","Амир",10,10,70,200,"участник",null,"Пахомова Ю"]
[244,"МБОУ СОШ №9","Навшеева","Диана",10,10,64,200,"участник",null,"Сабанов В.П."]
[245,"МБОУ Татарская гимназия №14 им.Х.Атласи","Зиниатуллин","Азат",10,10,60,200,"участник",null,"Гайнуллин Ф.К."]
[246,"МБОУ лицей-интернат им.М.Онджеля","Андреева","Елизавета",10,10,53,200,"участник",null,"Третьякова Наталья Дмитриевна"]
[247,"МБОУ гимназия №7","Гришина","Анастасия",10,10,53,200,"участник",null,"Камбулов Алексей Владимирович"]
[248,"МБОУ СОШ №4","Ибрагимов","Мурат",10,10,46,200,"участник",null,"Черненко Е.В."]
[249,"МБОУ СОШ №6","Кикоть","Полина",10,10,44,200,"участник",null,"Филатова Г.Ю."]
[250,"МБОУ Карабашская СОШ №2","Лотфуллина","Амалия",10,10,34,200,"участник",null,"Камбулов Алексей Владимирович"]
[251,"МБОУ СОШ №6","Кислинский","Юрий",10,10,27,200,"участник",null,"Филатова Г.Ю."]
[252,"СОШ №4","Ямалиева","Агата",8,10,24,200,"участник",null,"Черненко Е.в."]
[253,"МБОУ СОШ №5","Ерохин","Георгий",10,10,24,200,"участник",null,"Пахомова Ю"]
[254,"СОШ №4","Ямалиева","Агата",8,10,24,200,"участник",null,"Черненко Е.в."]
[255,"МБОУ лицей-интернат им.М.Онджеля","Жилина","Ульяна",10,10,21,200,"участник",null,"Третьякова Н.Д"]
[256,"СОШ №4","Кулиева","Ламия",10,10,20,200,"участник",null,"Черненко ЕВ"]
[257,"МБОУ СОШ 9","Хуснуллин","Михаил",10,10,135,200,"участник",null,"Сабанов ВП"]
[258,"МБОУ Татарская гимназия №14 им.Х.Атласи","Мингалиев","Раиль",11,11,192,200,"победитель","да","Гайнуллин Ф.К."]
[259,"МБОУ СОШ №3","Ахмадышин","Айнур",11,11,192,200,"победитель","да","Степанищев С.В."]
[260,"МБОУ гимназия №7","Волкова","Елизавета",11,11,181,200,"призер",null,"Камбулов Алексей Владимирович"]
[261,"МБОУ лицей №2","Фалько","Богдан",11,11,153,200,"участник",null,"Никишина Н.А."]
[262,"МБОУ СОШ №6","Касатов","Ярослав",11,11,112,200,"участник",null,"Филатова Г.Ю."]
[263,"МБОУ лицей №2","Ильин","Тимофей",11,11,109,200,"участник",null,"Никишина Н.А."]
[264,"ГБОУ \"Бугульминская кадетская школа-интернат\"","Пятибратов","Богдан",11,11,{"$f":"[1]list!O92","v":88},{"$f":"[1]list!P92","v":200},"участник",null,"Бобров Д.В."]
[265,"МБОУ лицей-интернат им.М.Онджеля","Потанина","Ангелина Александровна",11,11,84,200,"участник",null,"Третьякова Н.Д."]
[266,"МБОУ Малобугульминская СОШ","Вуколова","Ангелина",11,11,72,200,"участник",null,"Абдюков Р.Ф"]
[267,"МБОУ СОШ №5","Семенов","Александр",11,11,69,200,"участник",null,"Пахомова Ю"]
[268,"МБОУ СОШ №13","Кадямов","Амир",11,11,66,200,"участник",null,"Шунгалов Булат Жулдасович"]
[269,"МБОУ СОШ №4","Иванова","Милана",11,11,65,200,"участник",null,"Черненко Е.В."]
[270,"МБОУ СОШ №13","Гурьянова","Ангелина",11,11,53,200,"участник",null,"Хуснуллин Л.И."]
[271,"МБОУ гимназия №7","Лапшин","Кирилл",11,11,50,200,"участник",null,"Тихонов О.И."]
[272,"МБОУ СОШ №6","Кузьмин","Кирилл",11,11,49,200,"участник",null,"Филатова Г.Ю."]
[273,"МБОУ СОШ №5","Чахеев","Максим",11,11,28,200,"участник",null,"Пахомова Ю"]